bitfinex/quotes_ETHUSD_20220227
["timestamp","ask_amount","ask_price","bid_price","bid_amount"]
[1645955679629,3.3166,2765.6,2765.0,3.5]
[1645955679829,3.0269,2765.8,2765.0,3.5]
[1645955679830,0.3613,2765.7,2765.0,1.0]
[1645955680027,0.3613,2765.7,2765.0,1.00163633]
[1645955680228,3.0269,2765.8,2765.0,0.00163633]
[1645955680428,3.0269,2765.8,2764.9,0.30599075]
[1645955680630,3.0269,2765.8,2765.0,0.00163633]
[1645955680829,3.0269,2765.8,2764.6,0.00163633]
[1645955681033,3.0269,2765.8,2765.3,0.00599048]
[1645955681234,0.3613,2765.7,2765.3,0.00599048]
[1645955681435,0.3613,2765.5,2765.3,0.00599048]
[1645955682230,0.6613,2765.5,2765.3,0.00599048]
[1645955682631,0.0025215,2765.2,2764.8,0.02396552]
[1645955683030,0.0025215,2765.2,2764.6,0.25]
[1645955683268,0.0025215,2765.2,2764.2,1.31139718]
[1645955683467,0.0025215,2765.2,2764.3,0.43247723]
[1645955685870,0.0025215,2765.2,2764.3,0.00163633]
[1645955686072,0.0025215,2765.2,2764.1,0.00163633]
[1645955686271,0.0025215,2765.2,2764.1,0.43254888]
[1645955686471,1.17594608,2764.9,2764.4,1.4393433]
[1645955686676,0.0025215,2765.2,2764.4,1.4393433]
[1645955687125,0.0025215,2765.2,2764.5,0.4366291]
[1645955687326,0.0025215,2765.2,2764.5,0.00599105]
[1645955687725,1.21106382,2765.2,2764.5,0.00599105]
[1645955687926,1.21106382,2765.2,2764.4,1.4393433]
[1645955688226,0.0025215,2765.2,2764.7,0.0059909]
[1645955689026,0.0025215,2765.2,2764.5,0.00163633]
[1645955689231,1.29279514,2765.1,2764.4,1.4393433]
[1645955689427,0.0025215,2765.2,2764.4,1.4393433]
[1645955690328,0.0025215,2765.2,2764.5,3.5]
[1645955690535,0.0025215,2765.2,2764.6,1.31405454]
[1645955690776,0.0025215,2765.2,2764.7,3.93075454]
[1645955690974,0.0025215,2765.2,2764.8,0.43075454]
[1645955691175,0.0025215,2765.2,2764.8,0.79205454]
[1645955691379,0.0025215,2765.2,2764.9,3.93075454]
[1645955691578,0.0025215,2765.2,2764.9,3.5]
[1645955691782,0.0025215,2765.2,2765.0,0.43047075]
[1645955692181,0.0025215,2765.2,2764.9,0.00567789]
[1645955692382,0.0025215,2765.2,2765.0,1.73875851]
[1645955692585,0.0025215,2765.2,2765.0,1.30811416]
[1645955692984,0.0025215,2765.2,2765.0,1.31379198]
[1645955693384,0.0025215,2765.2,2765.1,0.43082102]
[1645955693784,0.0025215,2765.2,2765.0,1.292613]
[1645955693986,0.0025215,2765.2,2765.0,1.28693518]
[1645955694185,0.0025215,2765.2,2765.0,1.29261296]
[1645955694626,0.0025215,2765.2,2765.0,0.00567778]
[1645955695225,0.0025215,2765.2,2764.8,0.3]
[1645955695526,0.0025215,2765.2,2765.1,1.28005309]
[1645955696932,0.0025215,2765.2,2765.0,0.00562811]
[1645955697531,0.0025215,2765.2,2764.6,0.02415214]
[1645955697732,0.0025215,2765.2,2764.6,0.00163633]
[1645955697935,0.0025215,2765.2,2765.0,1.26300191]
[1645955698786,0.0025215,2765.2,2765.0,1.25737377]
[1645955698985,0.0025215,2765.2,2765.0,1.26300191]
[1645955699784,0.0025215,2765.2,2765.0,0.81100191]
[1645955699984,0.0025215,2765.2,2764.9,0.3]
[1645955700186,0.0025215,2765.2,2765.0,0.00563149]
[1645955701085,0.0025215,2765.2,2764.7,0.36293633]
[1645955701286,0.0025215,2765.2,2764.9,0.3613]
[1645955701488,0.0025215,2765.2,2765.0,0.00563149]
[1645955702333,0.0025215,2765.2,2764.9,0.6613]
[1645955702532,0.0025215,2765.2,2765.0,0.00563149]
[1645955702930,0.0025215,2765.2,2764.9,0.6613]
[1645955702931,0.0025215,2765.2,2764.9,0.522]
[1645955703133,0.0025215,2765.2,2765.0,0.8833]
[1645955703430,0.0025215,2765.2,2765.0,1.55631235]
[1645955703631,8.1744,2766.8,2765.3,0.3613]
[1645955703830,8.1744,2766.8,2765.4,0.8833]
[1645955704234,8.1744,2766.8,2766.2,1.31060834]
[1645955704235,9.59273429,2766.8,2766.2,1.31060834]
[1645955704531,1.2394,2766.8,2766.2,1.31060834]
[1645955705986,1.12707681,2767.1,2766.2,1.31060834]
[1645955706386,6.4279,2767.2,2766.2,1.31060834]
[1645955706787,6.7892,2767.2,2766.2,1.31060834]
[1645955707399,0.00598624,2766.8,2766.2,1.31060834]
[1645955707592,0.36728624,2766.8,2765.8,0.90394]
[1645955707792,3.5,2766.7,2765.6,0.00163633]
[1645955708393,0.3613,2766.6,2765.6,0.00163633]
[1645955708592,0.00598666,2766.3,2765.6,0.00163633]
[1645955708793,0.00598666,2766.3,2765.7,1.4148912]
[1645955708996,0.00598666,2766.3,2765.8,3.5]
[1645955709437,0.00598666,2766.3,2765.8,4.5]
[1645955709622,1.2433,2766.7,2765.8,4.5]
[1645955709824,0.00598671,2766.2,2765.8,4.5]
[1645955710029,0.00598671,2766.2,2766.1,1.36631016]
[1645955710826,1.2433,2766.7,2766.1,1.36631016]
[1645955711024,0.00598666,2766.3,2766.1,1.36631016]
[1645955711225,0.00598666,2766.3,2766.0,0.3]
[1645955711426,0.00598666,2766.3,2765.8,4.5]
[1645955712032,1.2433,2766.7,2765.8,4.5]
[1645955712331,0.00598671,2766.2,2765.8,4.5]
[1645955713167,2.68632753,2766.7,2765.8,4.5]
[1645955713566,0.00598664,2766.2,2765.8,4.5]
[1645955713767,0.00598664,2766.2,2765.8,4.0910082]
[1645955713968,0.00598664,2766.2,2765.9,0.42437164]
[1645955714168,0.00598664,2766.2,2766.0,3.5]
[1645955714370,6.2835,2767.2,2766.0,3.5]
[1645955714371,6.2835,2767.2,2766.1,0.94637164]
[1645955714569,1.08520646,2767.1,2766.2,3.92437164]
[1645955714769,1.08520646,2767.0,2766.3,0.42437164]
[1645955715068,0.0239373,2767.3,2766.3,0.42437164]
[1645955715274,1.12142642,2766.7,2766.3,0.42437164]
[1645955715670,1.12142642,2766.7,2766.4,0.42437164]
[1645955715867,1.12142642,2766.7,2766.1,0.31557752]
[1645955716268,1.12142642,2766.7,2766.2,0.42410026]
[1645955716469,1.44606707,2766.6,2765.9,0.42410026]
[1645955716671,0.3613,2766.4,2765.7,0.3]
[1645955716924,0.3613,2766.4,2765.6,0.00163633]
[1645955716925,0.3613,2766.4,2765.8,0.42426641]
[1645955717129,1.08484042,2766.3,2765.5,0.25]
[1645955717329,0.36728658,2766.4,2765.6,0.42598488]
[1645955717330,0.3613,2766.2,2765.6,0.42598488]
[1645955717526,1.20803864,2765.8,2765.6,0.42434855]
[1645955718027,1.20803864,2765.8,2765.7,0.42434855]
[1645955718028,1.56933864,2765.8,2765.7,0.42434855]
[1645955718227,1.56933864,2765.8,2765.1,0.00163633]
[1645955718628,1.56933864,2765.8,2765.0,0.41631061]
[1645955719331,0.5059,2766.1,2765.0,0.41631061]
[1645955719528,0.5059,2766.1,2765.1,3.91794694]
[1645955719529,1.5566,2766.1,2765.1,3.91794694]
[1645955719729,1.5566,2766.1,2765.2,0.41631061]
[1645955719930,1.5566,2766.1,2765.3,0.41631061]
[1645955720128,1.5566,2766.1,2765.4,0.41631061]
[1645955720332,1.5566,2766.1,2765.5,0.41631061]
[1645955720674,1.07910998,2766.0,2765.6,0.41631061]
[1645955720875,1.07910998,2766.0,2765.7,0.41631061]
[1645955720876,0.3613,2765.9,2765.7,0.41631061]
[1645955721075,0.3613,2765.9,2764.9,4.80714151]
[1645955721274,0.3613,2765.9,2765.0,0.41631829]
[1645955721474,1.44097836,2765.5,2765.0,0.41631829]
[1645955721680,0.3613,2765.9,2765.0,0.41631829]
[1645955721876,0.3613,2765.8,2765.0,0.41631829]
[1645955722080,0.3613,2765.8,2765.1,0.00163633]
[1645955722280,1.3399,2766.1,2765.1,0.00163633]
[1645955722680,1.13269777,2765.9,2765.1,0.00163633]
[1645955722886,0.50167015,2765.9,2765.1,0.41795462]
[1645955723082,0.00561351,2766.2,2765.4,1.16381813]
[1645955723283,0.00561351,2766.2,2765.6,0.3613]
[1645955723488,0.00561351,2766.2,2765.7,0.41631829]
[1645955723687,0.00561351,2766.2,2765.8,0.41631829]
[1645955723886,0.00561351,2766.2,2765.9,0.41631829]
[1645955724091,4.6649,2767.2,2766.0,0.41631829]
[1645955724284,2.20283021,2767.1,2766.5,1.19632303]
[1645955724544,1.11520935,2767.0,2766.1,0.3]
[1645955724733,1.11520935,2767.0,2766.2,0.69529782]
[1645955724932,1.11520935,2767.0,2765.7,1.822]
[1645955724933,1.11520935,2767.0,2766.3,0.39529782]
[1645955725132,1.11520935,2767.0,2766.4,0.39529782]
[1645955725334,1.47650935,2767.0,2766.1,0.90398]
[1645955725539,0.00564235,2766.7,2766.2,0.39527441]
[1645955725735,0.00564235,2766.7,2766.0,0.3]
[1645955725937,0.00564235,2766.7,2766.1,0.39531558]
[1645955726537,0.3613,2767.1,2766.1,0.39531558]
[1645955726538,1.06985526,2766.8,2766.1,0.39531558]
[1645955726737,0.0056425,2766.5,2766.1,0.39531558]
[1645955727746,0.3613,2767.1,2766.1,0.39531558]
[1645955727946,0.00563701,2766.4,2766.1,0.39531558]
[1645955728569,0.00563701,2766.4,2765.8,3.40796]
[1645955728869,1.67091996,2766.7,2765.9,0.39553357]
[1645955729068,0.00563705,2766.4,2765.9,0.39553357]
[1645955729268,0.00563705,2766.4,2765.9,1.45828921]
[1645955729469,0.00563705,2766.4,2766.0,0.39553357]
[1645955730071,0.3613,2766.6,2766.1,0.39553357]
[1645955730271,0.00544683,2766.3,2765.8,3.10796]
[1645955730470,0.00544683,2766.3,2765.9,0.39564213]
[1645955730975,2.85974459,2766.2,2765.9,0.39564213]
[1645955731177,0.3613,2766.0,2765.5,0.00163633]
[1645955731377,0.3613,2765.8,2765.3,0.00163633]
[1645955731571,0.1446,2765.7,2765.1,0.39294804]
[1645955731772,0.1446,2765.7,2765.2,0.39294804]
[1645955732048,0.3613,2765.6,2765.3,0.39294804]
[1645955732248,1.03155195,2765.7,2765.3,0.39294804]
[1645955732449,1.1361,2766.1,2765.3,0.39294804]
[1645955732648,1.11951212,2766.0,2765.3,0.39458437]
[1645955732849,1.11951212,2766.0,2764.9,4.17770604]
[1645955733050,1.11951212,2766.0,2765.2,0.3]
[1645955733253,1.48081212,2766.0,2765.0,3.80165877]
[1645955733447,0.3613,2766.0,2765.1,0.00165877]
[1645955733949,1.05412885,2765.5,2765.1,0.00165877]
[1645955734149,0.3613,2766.0,2765.0,1.51978689]
[1645955734450,0.3613,2766.0,2765.1,0.00165877]
[1645955735448,0.3613,2766.0,2765.2,1.17642983]
[1645955735449,1.15845186,2765.7,2765.2,1.17642983]
[1645955735682,0.3613,2766.0,2765.2,1.17642983]
[1645955735888,1.2807,2766.1,2765.2,0.72402983]
[1645955736082,1.2807,2766.1,2765.2,1.0256886]
[1645955737088,1.43529205,2765.9,2765.2,1.0256886]
[1645955737287,1.43529205,2765.9,2765.2,0.00165877]
[1645955738492,1.13062417,2765.4,2765.2,0.00165877]
[1645955738690,1.13062417,2765.4,2765.1,0.67225302]
[1645955738889,1.13062417,2765.4,2764.9,0.00701289]
[1645955738890,1.13062417,2765.4,2764.9,0.22686591]
[1645955739292,1.2807,2766.1,2764.8,0.90251978]
[1645955739537,1.2807,2766.1,2764.9,0.90251978]
[1645955740138,1.1361,2766.1,2765.0,0.1446]
[1645955740342,1.2266304,2765.5,2765.0,1.28683369]
[1645955740638,1.2266304,2765.5,2764.9,4.54892]
[1645955740838,1.2266304,2765.5,2764.9,1.1446]
[1645955741338,1.2266304,2765.5,2764.9,0.1446]
[1645955741839,1.2266304,2765.5,2764.9,3.1922]
[1645955742044,1.1361,2766.1,2764.9,3.1922]
[1645955742241,0.3613,2766.0,2764.9,1.0]
[1645955742441,0.3613,2766.0,2764.8,2.50433464]
[1645955742642,0.3613,2766.0,2765.0,0.00165269]
[1645955743269,1.04682593,2765.6,2765.0,0.00165269]
[1645955743470,0.00389977,2765.6,2765.0,0.00165269]
[1645955744472,0.3613,2766.0,2764.8,0.00165269]
[1645955744671,1.2540363,2765.4,2764.8,0.90417247]
[1645955744871,0.00582351,2765.6,2764.8,0.30747804]
[1645955745171,0.00582351,2765.6,2764.8,1.20999782]
[1645955745371,0.00582351,2765.6,2764.9,3.5]
[1645955745771,0.3613,2766.0,2764.9,3.5]
[1645955745972,0.00582337,2765.6,2765.0,0.00165269]
[1645955746570,0.00582337,2765.6,2764.8,0.90999768]
[1645955746772,0.00582337,2765.6,2764.8,1.20999768]
[1645955747023,1.25316745,2765.6,2764.9,3.5]
[1645955747221,0.00582351,2765.6,2764.9,4.5]
[1645955748224,0.3613,2766.0,2764.9,4.5]
[1645955748424,0.00567893,2765.6,2765.0,0.00165269]
[1645955748827,0.00567893,2765.6,2765.0,0.67625603]
[1645955749027,0.00567893,2765.6,2765.1,0.67460334]
[1645955749224,0.00567893,2765.6,2765.0,0.67625603]
[1645955749423,1.42161574,2765.7,2765.0,2.07417034]
[1645955749626,0.005679,2765.6,2765.0,2.07417034]
[1645955749824,0.005679,2765.6,2765.1,0.00165269]
[1645955750024,0.005679,2765.6,2765.0,1.399567]
[1645955750230,0.005679,2765.6,2765.0,2.07417034]
[1645955750684,0.3613,2766.0,2765.0,2.07417034]
[1645955750685,1.09429513,2765.7,2765.0,2.07417034]
[1645955750881,0.005679,2765.6,2765.1,0.00165269]
[1645955751083,0.005679,2765.6,2765.1,0.67460334]
[1645955751282,0.005679,2765.6,2765.0,2.07417034]
[1645955751489,0.005679,2765.6,2765.0,1.399567]
[1645955751684,0.68430324,2766.4,2765.1,3.5]
[1645955751991,0.02275612,2767.3,2766.2,5.0]
[1645955752189,0.68420486,2767.5,2766.2,5.0]
[1645955752190,1.36807037,2768.1,2766.7,0.01268253]
[1645955752391,0.53969315,2769.0,2767.0,11.4013]
[1645955752392,8.27204691,2768.6,2767.0,11.4013]
[1645955752591,7.36,2768.6,2767.3,0.3613]
[1645955752789,7.36,2768.6,2767.7,1.28849341]
[1645955752990,1.00774329,2768.5,2767.6,3.6444]
[1645955753186,1.00774329,2768.5,2767.7,0.50172285]
[1645955753588,4.19683151,2768.6,2767.7,0.50172285]
[1645955753789,7.36,2768.7,2767.7,0.50172285]
[1645955753997,1.43827367,2768.5,2767.9,1.10179342]
[1645955754191,7.36,2768.7,2767.9,1.10179342]
[1645955754832,7.36,2768.7,2767.7,1.20344]
[1645955755032,7.7213,2768.7,2767.7,1.20344]
[1645955755233,7.7213,2768.7,2767.6,0.1444]
[1645955755734,0.0059675,2768.3,2767.4,1.3]
[1645955755933,0.0059675,2768.3,2767.4,2.5673622]
[1645955756133,0.0059675,2768.3,2767.4,1.2673622]
[1645955756341,0.0059675,2768.3,2767.2,1.80723]
[1645955756540,0.14536,2768.6,2767.0,1.67569]
[1645955756541,0.0102434,2767.2,2767.0,0.25]
[1645955756736,0.0102434,2767.2,2766.8,3.5152005]
[1645955756935,0.0102434,2767.2,2767.1,0.00596963]
[1645955757336,0.0102434,2767.2,2767.1,1.41302818]
[1645955757537,0.0102434,2767.2,2767.1,0.00596963]
[1645955757938,0.0102434,2767.2,2766.9,1.04802]
[1645955758176,0.0102434,2767.2,2767.0,0.00596889]
[1645955758370,0.0102434,2767.2,2767.0,0.30596889]
[1645955758569,0.0102434,2767.2,2767.0,2.45643]
[1645955758775,0.0102434,2767.2,2767.0,5.95643]
[1645955759073,0.0102434,2767.2,2767.0,2.45046111]
[1645955759270,0.0102434,2767.2,2767.0,3.45643004]
[1645955759470,0.0102434,2767.2,2767.0,2.45643004]
[1645955759670,0.0102434,2767.2,2767.0,3.45643004]
[1645955759870,0.0102434,2767.2,2767.0,2.45643004]
[1645955760073,0.0102434,2767.2,2767.1,3.8613]
[1645955760272,7.2279,2768.6,2767.2,7.0]
[1645955760273,0.00096,2768.4,2767.2,7.0]
[1645955760471,0.02386564,2768.1,2767.4,2.16803]
[1645955760671,0.02386564,2768.1,2767.5,4.022]
[1645955760872,0.02386564,2768.1,2767.6,2.7100889]
[1645955761070,0.02386564,2768.1,2767.7,4.022]
[1645955761271,0.02386564,2768.1,2767.7,5.101887]
[1645955761470,0.00096,2768.7,2767.7,6.101887]
[1645955761675,0.00596773,2768.0,2767.7,6.101887]
[1645955761940,0.00596773,2768.0,2767.7,7.908617]
[1645955762140,0.00596773,2768.0,2767.7,4.408617]
[1645955762341,0.00596773,2768.0,2767.7,8.811927]
[1645955762539,0.00596773,2768.0,2767.7,9.715287]
[1645955762739,0.00096,2768.7,2767.8,0.3]
[1645955762940,0.00596776,2768.0,2767.9,0.522]
[1645955763741,0.00096,2768.7,2767.9,0.522]
[1645955763941,0.00096,2768.9,2768.2,0.90334]
[1645955764142,0.02386717,2768.5,2768.1,0.17838011]
[1645955764346,0.02386717,2768.5,2768.1,0.47838011]
[1645955764741,0.02386717,2768.5,2768.1,0.12838011]
[1645955765144,0.00096,2768.9,2768.1,0.12838011]
[1645955765342,0.00096,2768.9,2767.9,0.522]
[1645955765779,0.36226,2768.9,2767.9,0.522]
[1645955765978,0.36226,2768.9,2767.9,1.42542]
[1645955766180,0.36226,2768.9,2768.1,1.07995687]
[1645955766181,0.00096,2768.9,2768.1,1.07995687]
[1645955766989,0.00096,2768.9,2767.9,2.72542]
[1645955767183,0.00096,2768.9,2767.9,1.72542]
[1645955767383,0.00096,2768.9,2767.9,1.522]
[1645955767784,0.00596353,2768.5,2767.9,0.522]
[1645955767984,1.05791545,2768.4,2767.9,0.522]
[1645955768185,0.00596353,2768.5,2767.9,0.522]
[1645955768385,0.00596353,2768.5,2767.9,1.42541]
[1645955768785,0.00096,2768.9,2768.0,0.3]
[1645955768985,0.00596368,2768.3,2768.0,0.3]
[1645955769822,1.30927047,2768.6,2768.0,0.3]
[1645955770223,0.00596372,2768.3,2768.0,0.3]
[1645955770825,0.00596372,2768.3,2767.9,2.72541]
[1645955771026,0.00096,2768.5,2767.9,1.822]
[1645955771224,1.30927047,2768.6,2767.9,0.522]
[1645955771427,0.00596372,2768.3,2767.6,5.022]
[1645955771625,0.00096,2768.5,2767.6,1.822]
[1645955771928,0.00096,2768.5,2767.6,0.522]
[1645955771929,1.39480564,2767.9,2767.6,0.522]
[1645955772134,0.00096,2768.5,2767.6,0.522]
[1645955772628,0.00096,2768.5,2767.2,0.522]
[1645955773032,1.33650923,2768.0,2767.2,0.522]
[1645955773799,1.33650923,2768.0,2766.8,1.9670105]
[1645955773997,7.36096,2767.9,2766.8,1.9670105]
[1645955774701,1.2342236,2767.5,2766.8,1.9670105]
[1645955774898,1.2342236,2767.5,2766.8,2.2670105]
[1645955775098,1.2342236,2767.5,2767.2,0.00210547]
[1645955775698,7.72226,2767.9,2767.2,0.00210547]
[1645955775899,7.7213,2767.9,2766.8,2.1226105]
[1645955776099,0.00096,2767.8,2767.2,0.00596492]
[1645955776298,7.67226,2767.9,2767.2,0.00596492]
[1645955776498,0.3613,2767.9,2767.2,0.00596492]
[1645955776700,0.5057,2768.0,2767.2,0.00596492]
[1645955776932,1.13995302,2767.7,2767.2,0.00596492]
[1645955777135,1.13995302,2767.7,2766.8,2.1226105]
[1645955777340,1.13995302,2767.7,2767.4,0.00596483]
[1645955778335,1.13995302,2767.7,2766.9,4.5]
[1645955778537,1.13995302,2767.7,2767.4,0.00596477]
[1645955779539,1.13995302,2767.7,2767.0,1.09619403]
[1645955779738,0.36226,2768.0,2767.4,0.00585293]
[1645955779941,0.3613,2768.0,2767.4,0.00585293]
[1645955780791,1.08808869,2767.7,2767.0,1.09619403]
[1645955780990,1.08808869,2767.7,2767.4,0.00585312]
[1645955781592,0.00096,2767.9,2767.4,0.00429582]
[1645955781790,0.3613,2768.0,2767.4,0.00429582]
[1645955781994,0.3613,2768.0,2767.0,1.09619403]
[1645955782294,0.00096,2767.9,2767.0,0.91506403]
[1645955783296,0.00096,2767.9,2767.3,0.00179216]
[1645955783493,0.36226,2768.0,2767.3,0.00179216]
[1645955783895,3.8613,2768.0,2767.3,0.00179216]
[1645955784095,0.3613,2767.8,2767.3,0.00179216]
[1645955784295,3.8113,2767.8,2767.0,9.33255]
[1645955784534,1.26382097,2767.7,2767.0,9.33255]
[1645955784734,4.76382097,2767.6,2767.4,0.00565166]
[1645955784933,0.00148817,2767.1,2767.0,9.33255]
[1645955788481,0.00148817,2767.1,2767.0,18.6651]
[1645955788879,1.23218702,2767.5,2767.0,18.6651]
[1645955789080,0.1444,2767.9,2767.0,18.6651]
[1645955789280,1.31582457,2767.8,2767.0,18.6651]
[1645955789481,0.95452457,2767.7,2767.0,18.6651]
[1645955790287,0.1500666,2767.9,2767.0,19.6651]
[1645955790288,0.0056666,2767.9,2767.0,19.6651]
[1645955790479,0.36226,2768.0,2767.0,19.6651]
[1645955790678,0.96042318,2767.9,2767.2,0.00579347]
[1645955790883,0.00579208,2767.9,2767.2,0.00579347]
[1645955791081,0.95534673,2767.8,2767.2,0.00579347]
[1645955791482,1.15412186,2767.5,2767.0,19.6651]
[1645955791685,0.36226,2768.0,2767.1,0.54918281]
[1645955791686,0.00096,2768.0,2767.1,0.54918281]
[1645955791926,0.95697022,2768.0,2767.3,0.00192858]
[1645955792130,0.95601022,2768.0,2767.3,0.00192858]
[1645955792730,0.95601022,2768.0,2767.1,0.54922933]
[1645955792938,1.1700558,2767.7,2767.3,0.00192858]
[1645955793933,1.1700558,2767.7,2767.1,0.54922933]
[1645955794133,0.00678941,2767.9,2767.3,0.00583071]
[1645955794336,0.95706803,2767.8,2767.3,0.00583071]
[1645955795135,0.95706803,2767.8,2767.1,1.0]
[1645955795136,0.95706803,2767.8,2767.0,19.9651]
[1645955795337,1.05332155,2767.6,2767.3,0.00583078]
[1645955795807,0.95913222,2767.5,2767.4,0.55058011]
[1645955796008,0.95913222,2767.5,2767.3,0.00583078]
[1645955796407,0.95913222,2767.5,2767.0,19.6651]
[1645955796608,0.95913222,2767.5,2767.3,0.00583057]
[1645955796809,0.95913222,2767.5,2767.4,0.55061499]
[1645955797617,0.90913222,2767.8,2767.4,0.55061499]
[1645955797816,0.00096,2767.9,2767.3,0.00564799]
[1645955797817,0.00564673,2767.9,2767.3,0.00564799]
[1645955798016,0.00660673,2767.9,2767.3,0.00564799]
[1645955798417,0.00660673,2767.9,2767.3,1.12420274]
[1645955798619,0.00660673,2767.9,2767.4,3.5]
[1645955798815,1.2486,2768.1,2767.4,5.022]
[1645955798816,1.24956,2768.1,2767.4,5.022]
[1645955799016,0.00564694,2767.9,2767.4,5.022]
[1645955799929,3.16776,2768.2,2767.4,4.5]
[1645955800132,0.00564701,2767.9,2767.4,4.5]
[1645955800930,0.00564701,2767.9,2767.4,1.0]
[1645955801130,1.09118478,2768.1,2767.4,1.0]
[1645955801331,1.09118478,2768.1,2767.2,3.5]
[1645955801534,0.00565933,2767.9,2767.3,0.00566059]
[1645955801732,1.42506631,2767.6,2767.3,0.00566059]
[1645955801931,0.00565933,2767.9,2767.3,0.00566059]
[1645955802536,1.90905526,2768.1,2767.1,4.47631485]
[1645955802737,0.00565926,2767.9,2767.3,0.00566052]
[1645955803188,1.40886961,2767.9,2767.3,4.63685513]
[1645955803381,0.00565926,2767.9,2767.3,1.13685513]
[1645955803579,1.22866,2768.1,2767.2,0.3]
[1645955803780,0.00565926,2767.9,2767.3,0.00566052]
[1645955804781,1.90905526,2768.1,2767.2,0.90365]
[1645955804985,0.00565843,2767.9,2767.3,0.00565969]
[1645955805190,0.00565843,2767.9,2767.3,3.50565969]
[1645955805586,0.00565843,2767.9,2767.3,4.50565969]
[1645955805990,1.22866,2768.1,2767.6,1.16287856]
[1645955806187,0.00565843,2767.9,2767.6,1.16287856]
[1645955806933,0.00565843,2767.9,2767.5,0.3]
[1645955807138,0.00096,2768.2,2767.5,0.3]
[1645955807337,0.00565862,2767.9,2767.3,0.0056599]
[1645955808339,0.00096,2768.1,2767.1,5.92071485]
[1645955808543,0.00096,2768.1,2767.1,7.01569471]
[1645955808544,1.05065976,2767.8,2767.1,7.01569471]
[1645955808740,1.05065976,2767.8,2767.3,0.00565975]
[1645955809641,1.05065976,2767.8,2767.1,7.01569471]
[1645955809845,0.00565842,2767.9,2767.3,0.00565968]
[1645955810781,0.68135526,2768.2,2767.1,7.01569471]
[1645955810982,0.00565849,2767.9,2767.3,0.00565975]
[1645955811188,0.00565849,2767.9,2767.3,3.50565975]
[1645955811380,0.00565849,2767.9,2767.3,0.30565975]
[1645955811580,0.00565849,2767.9,2767.3,1.00565975]
[1645955811779,0.00565849,2767.9,2767.3,0.00565975]
[1645955811985,0.00096,2768.0,2767.2,0.3]
[1645955812183,0.00096,2768.0,2767.1,7.16009471]
[1645955812586,0.00565849,2767.9,2767.3,0.00565975]
[1645955813184,0.00096,2768.0,2767.1,7.16009471]
[1645955813387,0.00565849,2767.9,2767.3,0.00565975]
[1645955814436,1.18295622,2768.1,2767.1,7.16009471]
[1645955814637,0.00565849,2767.9,2767.3,0.00565975]
[1645955815641,0.00096,2768.0,2767.1,7.16009471]
[1645955815840,0.00565849,2767.9,2767.3,0.00565974]
[1645955816841,1.54425622,2768.1,2767.1,5.92071485]
[1645955817045,0.00528885,2767.9,2767.3,0.00529002]
[1645955817645,0.96973376,2767.8,2767.4,0.54513396]
[1645955817843,1.29614938,2767.6,2767.4,0.54513396]
[1645955818048,0.36226,2768.1,2767.4,0.54513396]
[1645955818279,0.00565849,2767.9,2767.5,0.54513396]
[1645955818479,0.96972549,2767.8,2767.6,0.54513396]
[1645955818683,0.96972549,2767.8,2767.7,0.54513396]
[1645955818880,0.96891147,2767.8,2767.3,0.00565974]
[1645955819282,0.96891147,2767.8,2767.1,5.92071485]
[1645955819486,0.00568019,2767.9,2767.3,0.00568145]
[1645955819684,0.00568019,2767.9,2767.3,3.50568145]
[1645955819882,0.00568019,2767.9,2767.3,3.80568145]
[1645955820082,0.00155503,2767.9,2767.3,4.80568145]
[1645955820285,0.00155503,2767.9,2767.3,5.32768145]
[1645955820582,1.12722124,2768.2,2767.3,5.322]
[1645955820983,0.3613,2768.1,2767.3,5.322]
[1645955821182,0.3613,2768.1,2767.3,5.022]
[1645955821585,0.3613,2768.1,2767.3,1.0]
[1645955821782,0.3613,2768.1,2767.2,1.72023736]
[1645955822031,0.00482019,2768.0,2767.3,3.5]
[1645955822332,0.00386019,2768.0,2767.3,4.5]
[1645955822530,0.00386019,2768.0,2767.4,0.3613]
[1645955822731,8.04039526,2768.3,2767.5,3.5]
[1645955822732,0.00096,2768.2,2767.5,3.5]
[1645955822933,8.04039526,2768.3,2767.6,0.522]
[1645955822934,7.36,2768.3,2767.6,0.522]
[1645955823131,0.00595956,2768.0,2767.6,0.522]
[1645955823332,0.00595956,2768.0,2767.6,0.822]
[1645955823733,0.00595956,2768.0,2767.6,0.522]
[1645955823933,0.00096,2768.2,2767.9,1.4334703]
[1645955824138,7.36,2768.3,2767.5,3.92839014]
[1645955824332,0.00595977,2768.0,2767.5,1.00596102]
[1645955824735,0.00595977,2768.0,2767.5,0.00596102]
[1645955825234,0.00096,2768.2,2767.6,0.522]
[1645955825434,7.36,2768.3,2767.5,0.00596095]
[1645955825435,0.0059597,2768.0,2767.5,0.00596095]
[1645955826089,0.0059597,2768.0,2767.4,3.87187095]
[1645955826289,0.0059597,2768.0,2767.9,1.06448522]
[1645955826492,7.36,2768.3,2767.9,1.06448522]
[1645955827895,0.00096,2768.4,2767.9,1.06448522]
[1645955827896,0.00096,2768.4,2768.0,0.522]
[1645955828093,2.44290703,2768.5,2768.1,0.90333]
[1645955828293,2.44290703,2768.5,2768.1,1.20333]
[1645955828695,0.00096,2768.7,2768.1,1.72533]
[1645955828894,7.36,2768.8,2768.1,1.72533]
[1645955828895,7.36096,2768.8,2768.1,1.72533]
[1645955829094,7.36096,2768.8,2768.1,2.02533]
[1645955829302,0.00096,2768.8,2768.1,2.02533]
[1645955829531,2.44386703,2769.0,2768.1,2.02533]
[1645955829734,3.49894072,2769.0,2768.4,1.14865345]
[1645955829934,1.05507369,2769.0,2768.3,1.20329]
[1645955830337,0.00595942,2768.7,2768.3,1.20329]
[1645955830736,0.00595942,2768.7,2768.5,0.3613]
[1645955830936,0.00595942,2768.7,2768.4,4.00822305]
[1645955830937,0.00595942,2768.7,2768.6,4.3833]
[1645955831136,0.00595942,2768.7,2768.6,4.6833]
[1645955831337,0.00096,2769.7,2768.6,5.6833]
[1645955831536,8.04039526,2769.7,2768.6,4.022]
[1645955831735,0.00096,2769.6,2768.6,4.022]
[1645955831938,0.00096,2769.6,2768.7,0.3613]
[1645955832134,0.00096,2769.6,2768.8,3.4237]
[1645955832336,9.80386703,2769.7,2768.9,0.90301]
[1645955832637,9.80386703,2769.7,2769.0,3.5]
[1645955833035,9.80386703,2769.7,2769.0,4.5]
[1645955833504,9.80386703,2769.7,2769.1,0.90301]
[1645955833705,9.80386703,2769.7,2769.2,3.972]